fUSD/lending_fUSD_20250515
["ID","MTS","AMOUNT","RATE_DAILY","PERIOD"]
[361137709,1747301348809,-400.0,0.00011911,2]
[361137710,1747301348840,-500.0,0.00011911,2]
[361137711,1747301348869,-400.47,0.00011911,2]
[361137712,1747301348899,-546.66,0.00011911,2]
[361137713,1747301348930,-400.0,0.00011911,2]
[361137714,1747301348959,-400.0,0.00011911,2]
[361137715,1747301348988,-400.0,0.00011911,2]
[361137716,1747301349016,-400.0,0.00011911,2]
[361137717,1747301349046,-400.0,0.00011911,2]
[361137718,1747301349075,-400.0,0.00011911,2]
[361137719,1747301349104,-400.0,0.00011911,2]
[361137720,1747301349132,-400.0,0.00011911,2]
[361137721,1747301349160,-400.0,0.00011911,2]
[361137722,1747301349188,-1164.73,0.00011911,2]
[361137723,1747301349215,-682.55,0.00011911,2]
[361137724,1747301349242,-908.55,0.00011911,2]
[361137725,1747301349271,-400.0,0.00011911,2]
[361137726,1747301349298,-641.25,0.00011911,2]
[361137727,1747301349325,-752.03,0.00011911,2]
[361137728,1747301349353,-1001.8,0.00011911,2]
[361137729,1747301349382,-400.0,0.00011911,2]
[361137730,1747301349410,-400.0,0.00011911,2]
[361137731,1747301349438,-400.0,0.00011911,2]
[361137732,1747301349466,-545.62,0.00011911,2]
[361137733,1747301349494,-559.24,0.00011911,2]
[361137734,1747301349522,-400.0,0.00011911,2]
[361137735,1747301349549,-1423.08,0.00011911,2]
[361137736,1747301349578,-400.0,0.00011911,2]
[361137737,1747301349605,-896.73,0.00011911,2]
[361137738,1747301349634,-400.0,0.00011911,2]
[361137739,1747301349665,-619.28,0.00011911,2]
[361137740,1747301349695,-400.0,0.00011911,2]
[361137741,1747301349724,-400.0,0.00011911,2]
[361137742,1747301349752,-400.0,0.00011911,2]
[361137743,1747301349780,-400.0,0.00011911,2]
[361137744,1747301349810,-403.92,0.00011911,2]
[361137745,1747301349841,-481.97,0.00011911,2]
[361137746,1747301349868,-962.89,0.00011911,2]
[361137747,1747301349895,-486.25,0.00011911,2]
[361137748,1747301349923,-997.33,0.00011911,2]
[361137749,1747301349951,-497.83,0.00011911,2]
[361137750,1747301349978,-487.94,0.00011911,2]
[361137751,1747301350006,-893.27,0.00011911,2]
[361137752,1747301350035,-1307.92,0.00011911,2]
[361137753,1747301350063,-581.78,0.00011911,2]
[361137754,1747301350091,-419.59,0.00011911,2]
[361137755,1747301350120,-400.0,0.00011911,2]
[361137756,1747301350149,-400.0,0.00011911,2]
[361137757,1747301350175,-1412.37,0.00011911,2]
[361137758,1747301350202,-887.78,0.00011911,2]
[361137759,1747301350229,-400.0,0.00011911,2]
[361137760,1747301350257,-1667.54623,0.00011912,2]
[361137761,1747301350284,-4871.749888,0.00011912,2]
[361137762,1747301350311,-306.562508,0.00011912,2]
[361137763,1747301350336,-400.0,0.00011912,2]
[361137764,1747301350364,-400.0,0.00011912,2]
[361137765,1747301350390,-152.54407273,0.00011912,2]
[361137766,1747301350418,-400.0,0.00011912,2]
[361137767,1747301350445,-400.0,0.00011912,2]
[361137768,1747301350472,-547.54,0.00011912,2]
[361137769,1747301350499,-1643.04,0.00011912,2]
[361137770,1747301350527,-400.0,0.00011912,2]
[361137771,1747301350555,-400.0,0.00011912,2]
[361137772,1747301350583,-228.44,0.00011912,2]
[361137773,1747301350612,-400.0,0.00011912,2]
[361137774,1747301350641,-602.89,0.00011912,2]
[361137775,1747301350671,-474.62,0.00011912,2]
[361137776,1747301350699,-400.0,0.00011912,2]
[361137777,1747301350727,-400.0,0.00011912,2]
[361137778,1747301350934,-400.0,0.00011912,2]
[361137779,1747301350964,-400.0,0.00011912,2]
[361137780,1747301350992,-944.26,0.00011912,2]
[361137781,1747301351023,-400.0,0.00011912,2]
[361137782,1747301351051,-535.58,0.00011912,2]
[361137783,1747301351079,-400.0,0.00011912,2]
[361137784,1747301351107,-400.0,0.00011912,2]
[361137785,1747301351134,-483.81,0.00011912,2]
[361137786,1747301351163,-400.0,0.00011912,2]
[361137787,1747301351190,-590.62,0.00011912,2]
[361137788,1747301351219,-402.91284912,0.00011912,2]
[361137789,1747301351249,-530.44,0.00011912,2]
[361137790,1747301351278,-400.0,0.00011912,2]
[361137791,1747301351308,-400.0,0.00011912,2]
[361137792,1747301351336,-519.0,0.00011912,2]
[361137793,1747301351365,-400.0,0.00011912,2]
[361137794,1747301351393,-400.0,0.00011912,2]
[361137795,1747301351424,-581.78,0.00011912,2]
[361137796,1747301351453,-400.0,0.00011912,2]
[361137797,1747301351484,-400.0,0.00011912,2]
[361137798,1747301351514,-403.4273207,0.00011912,2]
[361137799,1747301351543,-400.0,0.00011912,2]
[361137800,1747301351573,-400.0,0.00011912,2]
[361137801,1747301351604,-400.0,0.00011912,2]
[361137802,1747301351634,-400.0,0.00011912,2]
[361137803,1747301351666,-400.0,0.00011912,2]
[361137804,1747301351695,-557.27,0.00011912,2]
[361137805,1747301351723,-961.37,0.00011912,2]
[361137806,1747301351754,-1186.09,0.00011912,2]
[361137807,1747301351783,-543.50169908,0.00011912,2]
[361137808,1747301351811,-400.0,0.00011912,2]
[361137809,1747301351841,-400.0,0.00011912,2]
[361137810,1747301351869,-400.0,0.00011912,2]
[361137811,1747301351896,-400.0,0.00011912,2]
[361137812,1747301351925,-400.0,0.00011912,2]
[361137813,1747301351954,-400.0,0.00011912,2]
[361137814,1747301351982,-400.0,0.00011912,2]
[361137815,1747301352012,-690.76,0.00011912,2]
[361137816,1747301352040,-433.13,0.00011912,2]
[361137817,1747301352068,-400.0,0.00011912,2]
[361137818,1747301352096,-439.11,0.00011912,2]
[361137819,1747301352124,-427.29,0.00011912,2]
[361137820,1747301352152,-424.95161391,0.00011912,2]
[361137821,1747301352179,-400.0,0.00011912,2]
[361137822,1747301352208,-400.0,0.00011912,2]
[361137823,1747301352236,-400.0,0.00011912,2]
[361137824,1747301352266,-400.0,0.00011912,2]
[361137825,1747301352294,-400.0,0.00011912,2]
[361137826,1747301352321,-400.0,0.00011912,2]
[361137827,1747301352348,-400.0,0.00011912,2]
[361137828,1747301352376,-355.71788887,0.00011912,2]
[361137829,1747301352404,-400.0,0.00011912,2]
[361137830,1747301352433,-400.0,0.00011912,2]
[361137831,1747301352461,-259.6047448,0.00011912,2]
[361137832,1747301352490,-1106.6,0.00011912,2]
[361137833,1747301352520,-400.0,0.00011912,2]
[361137834,1747301352549,-483.53,0.00011912,2]
[361137835,1747301352576,-400.0,0.00011912,2]
[361137836,1747301352605,-906.43,0.00011912,2]
[361137837,1747301352634,-400.0,0.00011912,2]
[361137838,1747301352664,-400.0,0.00011912,2]
[361137839,1747301352693,-400.0,0.00011912,2]
[361137840,1747301352720,-705.45,0.00011912,2]
[361137841,1747301352748,-400.0,0.00011912,2]
[361137842,1747301352776,-400.0,0.00011912,2]
[361137843,1747301352804,-400.0,0.00011912,2]
[361137844,1747301352836,-493.47,0.00011912,2]
[361137845,1747301352866,-603.04,0.00011912,2]
[361137846,1747301352893,-400.0,0.00011912,2]
[361137847,1747301352921,-400.0,0.00011912,2]
[361137848,1747301352949,-1129.68,0.00011912,2]
[361137849,1747301352976,-554.88,0.00011912,2]
[361137850,1747301353004,-400.0,0.00011912,2]
[361137851,1747301353031,-539.59523624,0.00011912,2]
[361137852,1747301353059,-400.0,0.00011912,2]
[361137853,1747301353088,-400.0,0.00011912,2]
[361137854,1747301353116,-400.0,0.00011912,2]
[361137855,1747301353144,-543.78,0.00011912,2]
[361137856,1747301353172,-402.48,0.00011912,2]
[361137857,1747301353199,-400.0,0.00011912,2]
[361137858,1747301353227,-409.45,0.00011912,2]
[361137859,1747301353257,-779.59,0.00011912,2]
[361137860,1747301353285,-1524.3,0.00011912,2]
[361137861,1747301353313,-1512.63,0.00011912,2]
[361137862,1747301353344,-426.6,0.00011912,2]
[361137863,1747301353372,-1977.68,0.00011912,2]
[361137864,1747301353400,-1262.3,0.00011912,2]
[361137865,1747301353428,-400.0,0.00011912,2]
[361137866,1747301353457,-400.0,0.00011912,2]
[361137867,1747301353486,-405.85,0.00011912,2]
[361137868,1747301353517,-501.82,0.00011912,2]
[361137869,1747301353547,-400.0,0.00011912,2]
[361137870,1747301353577,-658.05,0.00011912,2]
[361137871,1747301353607,-904.31,0.00011912,2]
[361137872,1747301353637,-400.0,0.00011912,2]
[361137873,1747301353668,-3329.76,0.00011912,2]
[361137874,1747301353698,-400.0,0.00011912,2]
[361137875,1747301353728,-400.0,0.00011912,2]
[361137876,1747301353756,-400.0,0.00011912,2]
[361137877,1747301353786,-1087.33,0.00011912,2]
[361137878,1747301353816,-566.31,0.00011912,2]
[361137879,1747301353847,-400.0,0.00011912,2]
[361137880,1747301353875,-1376.47,0.00011912,2]
[361137881,1747301353904,-860.02,0.00011912,2]
[361137882,1747301353934,-400.0,0.00011912,2]
[361137883,1747301353962,-400.0,0.00011912,2]
[361137884,1747301353992,-2632.86,0.00011912,2]
[361137885,1747301354022,-605.36,0.00011912,2]
[361137886,1747301354051,-400.0,0.00011912,2]
[361137887,1747301354079,-400.0,0.00011912,2]
[361137888,1747301354108,-478.62,0.00011912,2]
[361137889,1747301354137,-1093.34,0.00011912,2]
[361137890,1747301354165,-1462.59,0.00011912,2]
[361137891,1747301354194,-480.74,0.00011912,2]
[361137892,1747301354223,-400.0,0.00011912,2]
[361137893,1747301354449,-400.0,0.00011912,2]
[361137894,1747301354482,-400.0,0.00011912,2]
[361137895,1747301354514,-400.0,0.00011912,2]
[361137896,1747301354546,-487.38,0.00011912,2]
[361137897,1747301354577,-400.0,0.00011912,2]
[361137898,1747301354607,-400.0,0.00011912,2]
[361137899,1747301354638,-400.0,0.00011912,2]
[361137900,1747301354671,-1749.68,0.00011912,2]
[361137901,1747301354702,-400.0,0.00011912,2]
[361137902,1747301354734,-400.0,0.00011912,2]
[361137903,1747301354768,-708.41,0.00011912,2]
[361137904,1747301354800,-400.0,0.00011912,2]
[361137905,1747301354830,-400.0,0.00011912,2]
[361137906,1747301354859,-411.19251064,0.00011912,2]
[361137907,1747301354887,-400.0,0.00011912,2]
[361137908,1747301354913,-1000.47,0.00011912,2]
[361137909,1747301354941,-400.0,0.00011912,2]
[361137910,1747301354970,-400.0,0.00011912,2]
[361137911,1747301355001,-2549.62,0.00011912,2]
[361137912,1747301355030,-409.4,0.00011912,2]
[361137913,1747301355062,-1557.79,0.00011912,2]
[361137914,1747301355092,-593.91,0.00011912,2]
[361137915,1747301355122,-1080.39,0.00011912,2]
[361137916,1747301355152,-729.76,0.00011912,2]
[361137917,1747301355181,-984.27,0.00011912,2]
[361137918,1747301355211,-477.88,0.00011912,2]
[361137919,1747301355241,-704.84,0.00011912,2]
[361137920,1747301355272,-458.58,0.00011912,2]
[361137921,1747301355302,-729.81,0.00011912,2]
[361137922,1747301355332,-400.0,0.00011912,2]
[361137923,1747301355360,-755.17,0.00011912,2]
[361137924,1747301355390,-40500.47,0.00011912,2]
[361137925,1747301355419,-400.0,0.00011912,2]
[361137926,1747301355449,-151.0,0.00011913,2]
[361137927,1747301355480,-3090.06,0.00011913,2]
[361137928,1747301355512,-400.0,0.00011913,2]
[361137929,1747301355544,-433.51,0.00011913,2]
[361137930,1747301355575,-863.78,0.00011913,2]
[361137931,1747301355608,-400.0,0.00011913,2]
[361137932,1747301355639,-10506.37,0.00011913,2]
[361137933,1747301355671,-2223.22,0.00011913,2]
[361137934,1747301355703,-400.0,0.00011913,2]
[361137935,1747301355733,-873.23,0.00011913,2]
[361137936,1747301355766,-1119.84,0.00011913,2]
[361137937,1747301355794,-552.28,0.00011913,2]
[361137938,1747301355824,-883.01165,0.00011914,2]
[361137939,1747301355854,-883.01165,0.00011914,2]
[361137940,1747301355882,-151.0,0.00011914,2]
[361137941,1747301355910,-2470.556945,0.00011914,2]
[361137942,1747301355937,-2470.556945,0.00011914,2]
[361137943,1747301355965,-552.0,0.00011918,2]
[361137944,1747301355994,-574.0,0.00011918,2]
[361137945,1747301356021,-773.40546655,0.00011921,2]
[361137946,1747301356050,-228.72250547,0.00011921,2]
[361137947,1747301356077,-1000.0,0.00011921,2]
[361137948,1747301356107,-400.0,0.00011924,2]
[361137949,1747301356135,-400.0,0.00011924,2]
[361137950,1747301356164,-398.0,0.00011924,2]
[361137951,1747301356193,-400.0,0.00011924,2]
[361137952,1747301356221,-400.0,0.00011924,2]
[361137953,1747301356249,-400.0,0.00011924,2]
[361137954,1747301356278,-400.0,0.00011924,2]
[361137955,1747301356307,-400.0,0.00011924,2]
[361137956,1747301356335,-400.0,0.00011924,2]
[361137957,1747301356363,-400.0,0.00011924,2]
[361137958,1747301356392,-250.0,0.00011924,2]
[361137959,1747301356421,-400.0,0.00011924,2]
[361137960,1747301356451,-400.0,0.00011924,2]
[361137961,1747301356482,-400.0,0.00011924,2]
[361137962,1747301356511,-400.0,0.00011924,2]
[361137963,1747301356541,-400.0,0.00011924,2]
[361137964,1747301356569,-492.41847999,0.00011924,2]
[361137965,1747301356598,-400.0,0.00011924,2]
[361137966,1747301356627,-400.0,0.00011924,2]
[361137967,1747301356657,-400.0,0.00011924,2]
[361137968,1747301356688,-400.0,0.00011924,2]
[361137969,1747301356719,-400.0,0.00011924,2]
[361137970,1747301356750,-400.0,0.00011924,2]
[361137971,1747301356780,-538.21736742,0.00011924,2]
[361137972,1747301356809,-400.0,0.00011924,2]
[361137973,1747301356842,-400.0,0.00011924,2]
[361137974,1747301356871,-484.79,0.00011924,2]
[361137975,1747301356899,-400.0,0.00011924,2]
[361137976,1747301356928,-503.52,0.00011924,2]
[361137977,1747301356958,-180.70335955,0.00011924,2]
[361137978,1747301356986,-400.0,0.00011924,2]
[361137979,1747301357013,-273.64700212,0.00011924,2]
[361137980,1747301357041,-400.0,0.00011924,2]
[361137981,1747301357069,-400.0,0.00011924,2]
[361137982,1747301357097,-400.0,0.00011924,2]
[361137983,1747301357124,-413.74,0.00011924,2]
[361137984,1747301357152,-492.16,0.00011924,2]
[361137985,1747301357181,-400.0,0.00011924,2]
[361137986,1747301357211,-400.0,0.00011924,2]
[361137987,1747301357239,-456.29,0.00011924,2]
[361137988,1747301357268,-400.0,0.00011924,2]
[361137989,1747301357297,-400.0,0.00011924,2]
[361137990,1747301357326,-400.0,0.00011924,2]
[361137991,1747301357354,-400.0,0.00011924,2]
[361137992,1747301357383,-400.0,0.00011924,2]
[361137993,1747301357415,-419.84,0.00011924,2]
[361137994,1747301357447,-411.86831803,0.00011924,2]
[361137995,1747301357478,-400.0,0.00011924,2]
[361137996,1747301357511,-400.0,0.00011924,2]
[361137997,1747301357543,-530.13,0.00011924,2]
[361137998,1747301357575,-327.48189106,0.00011924,2]
[361137999,1747301357605,-440.60558628,0.00011924,2]
[361138000,1747301357635,-400.0,0.00011924,2]
[361138001,1747301357666,-400.0,0.00011924,2]
[361138002,1747301357696,-400.0,0.00011924,2]
[361138003,1747301357726,-400.0,0.00011924,2]
[361138004,1747301357756,-532.70975742,0.00011924,2]
[361138005,1747301357784,-331.07130246,0.00011924,2]
[361138006,1747301357813,-400.0,0.00011924,2]
[361138007,1747301357844,-400.0,0.00011924,2]
[361138008,1747301357872,-400.0,0.00011924,2]
[361138009,1747301358084,-400.0,0.00011924,2]
[361138010,1747301358114,-400.0,0.00011924,2]
[361138011,1747301358145,-400.0,0.00011924,2]
[361138012,1747301358173,-400.0,0.00011924,2]
[361138013,1747301358201,-400.0,0.00011924,2]
[361138014,1747301358230,-400.0,0.00011924,2]
[361138015,1747301358259,-440.98,0.00011924,2]
[361138016,1747301358288,-400.0,0.00011924,2]
[361138017,1747301358316,-400.0,0.00011924,2]
[361138018,1747301358346,-829.68,0.00011924,2]
[361138019,1747301358375,-400.0,0.00011924,2]
[361138020,1747301358406,-400.0,0.00011924,2]
[361138021,1747301358437,-400.0,0.00011924,2]
[361138022,1747301358468,-400.0,0.00011924,2]
[361138023,1747301358498,-442.20436194,0.00011924,2]
[361138024,1747301358529,-400.0,0.00011924,2]
[361138025,1747301358558,-400.0,0.00011924,2]
[361138026,1747301358588,-1763.95,0.00011924,2]
[361138027,1747301358618,-414.77646453,0.00011924,2]
[361138028,1747301358649,-400.0,0.00011924,2]
[361138029,1747301358680,-400.0,0.00011924,2]
[361138030,1747301358710,-1455.99,0.00011924,2]
[361138031,1747301358743,-509.32,0.00011924,2]
[361138032,1747301358773,-400.0,0.00011924,2]
[361138033,1747301358804,-400.0,0.00011924,2]
[361138034,1747301358838,-592.4,0.00011924,2]
[361138035,1747301358869,-400.0,0.00011924,2]
[361138036,1747301358899,-400.0,0.00011924,2]
[361138037,1747301358929,-400.0,0.00011924,2]
[361138038,1747301358959,-400.0,0.00011924,2]
[361138039,1747301358989,-1214.4,0.00011924,2]
[361138040,1747301359020,-748.32,0.00011924,2]
[361138041,1747301359050,-400.0,0.00011924,2]
[361138042,1747301359081,-400.0,0.00011924,2]
[361138043,1747301359110,-1224.43,0.00011924,2]
[361138044,1747301359140,-400.0,0.00011924,2]
[361138045,1747301359170,-1051.7,0.00011924,2]
[361138046,1747301359198,-400.0,0.00011924,2]
[361138047,1747301359227,-872.62,0.00011924,2]
[361138048,1747301359256,-185.66308307,0.00011924,2]
[361138049,1747301359285,-400.0,0.00011924,2]
[361138050,1747301359314,-400.0,0.00011924,2]
[361138051,1747301359343,-400.0,0.00011924,2]
[361138052,1747301359372,-5275.4,0.00011924,2]
[361138053,1747301359403,-274.0922375,0.00011924,2]
[361138054,1747301359435,-400.0,0.00011924,2]
[361138055,1747301359466,-465.34,0.00011924,2]
[361138056,1747301359498,-4877.27,0.00011924,2]
[361138057,1747301359530,-1706.2,0.00011924,2]
[361138058,1747301359562,-2312.8,0.00011924,2]
[361138059,1747301359593,-400.0,0.00011924,2]
[361138060,1747301359624,-411.86835723,0.00011924,2]
[361138061,1747301359654,-400.0,0.00011924,2]
[361138062,1747301359689,-622.37,0.00011924,2]
[361138063,1747301359719,-3012.47,0.00011924,2]
[361138064,1747301359751,-400.0,0.00011924,2]
[361138065,1747301359782,-400.0,0.00011924,2]
[361138066,1747301359811,-664.97,0.00011924,2]
[361138067,1747301359842,-400.0,0.00011924,2]
[361138068,1747301359870,-400.0,0.00011924,2]
[361138069,1747301359899,-400.0,0.00011924,2]
[361138070,1747301359929,-400.0,0.00011924,2]
[361138071,1747301359958,-400.0,0.00011924,2]
[361138072,1747301359986,-400.0,0.00011924,2]
[361138073,1747301360014,-424.36,0.00011924,2]
[361138074,1747301360044,-2181.81,0.00011924,2]
[361138075,1747301360073,-400.0,0.00011924,2]
[361138076,1747301360103,-400.0,0.00011924,2]
[361138077,1747301360131,-400.0,0.00011924,2]
[361138078,1747301360158,-400.0,0.00011924,2]
[361138079,1747301360186,-4919.33,0.00011924,2]
[361138080,1747301360213,-400.0,0.00011924,2]
[361138081,1747301360241,-400.0,0.00011924,2]
[361138082,1747301360270,-400.0,0.00011924,2]
[361138083,1747301360297,-400.0,0.00011924,2]
[361138084,1747301360325,-13543.41,0.00011924,2]
[361138085,1747301360351,-400.0,0.00011924,2]
[361138086,1747301360378,-696.51,0.00011924,2]
[361138087,1747301360407,-4550.65,0.00011924,2]
[361138088,1747301360436,-400.0,0.00011924,2]
[361138089,1747301360467,-754.53,0.00011924,2]
[361138090,1747301360496,-400.0,0.00011924,2]
[361138091,1747301360529,-6945.29,0.00011924,2]
[361138092,1747301360558,-500.0,0.00011929,2]
[361138093,1747301360586,-400.0,0.0001193,2]
[361138094,1747301360615,-451.72703516,0.0001193,2]
[361138095,1747301360645,-400.0,0.0001193,2]
[361138096,1747301360677,-530.79376835,0.0001193,2]
[361138097,1747301360707,-268.43824113,0.0001193,2]
[361138098,1747301360736,-465.42,0.0001193,2]
[361138099,1747301360772,-400.0,0.0001193,2]
[361138100,1747301360803,-632.2,0.0001193,2]
[361138101,1747301360831,-407.62,0.0001193,2]
[361138102,1747301360858,-400.0,0.0001193,2]
[361138103,1747301360885,-400.0,0.0001193,2]
[361138104,1747301360911,-400.0,0.0001193,2]
[361138105,1747301360939,-400.0,0.0001193,2]
[361138106,1747301360967,-400.0,0.0001193,2]
[361138107,1747301360994,-400.0,0.0001193,2]
[361138108,1747301361024,-400.0,0.0001193,2]
[361138109,1747301361052,-400.0,0.0001193,2]
[361138110,1747301361080,-400.0,0.0001193,2]
[361138111,1747301361108,-400.0,0.0001193,2]
[361138112,1747301361138,-400.0,0.0001193,2]
[361138113,1747301361168,-400.0,0.0001193,2]
[361138114,1747301361195,-400.0,0.0001193,2]
[361138115,1747301361225,-151.0,0.0001193,2]
[361138116,1747301361252,-400.0,0.0001193,2]
[361138117,1747301361281,-557.88,0.0001193,2]
[361138118,1747301361309,-400.0,0.0001193,2]
[361138119,1747301361337,-400.0,0.0001193,2]
[361138120,1747301361365,-400.0,0.0001193,2]
[361138121,1747301361392,-457.22336379,0.0001193,2]
[361138122,1747301361421,-400.0,0.0001193,2]
[361138123,1747301361451,-999.09,0.0001193,2]
[361138124,1747301361481,-400.0,0.0001193,2]
[361138126,1747301361726,-400.0,0.0001193,2]
[361138127,1747301361756,-400.0,0.0001193,2]
[361138128,1747301361785,-400.0,0.0001193,2]
[361138129,1747301361812,-400.0,0.0001193,2]
[361138130,1747301361843,-400.0,0.0001193,2]
[361138131,1747301361871,-400.0,0.0001193,2]
[361138132,1747301361898,-511.74,0.0001193,2]
[361138133,1747301361927,-400.0,0.0001193,2]
[361138134,1747301361956,-400.0,0.0001193,2]
[361138135,1747301361985,-400.0,0.0001193,2]
[361138136,1747301362014,-400.0,0.0001193,2]
[361138137,1747301362043,-400.0,0.0001193,2]
[361138138,1747301362073,-400.0,0.0001193,2]
[361138139,1747301362105,-518.83222766,0.0001193,2]
[361138140,1747301362133,-420.37045913,0.0001193,2]
[361138141,1747301362161,-400.0,0.0001193,2]
[361138142,1747301362189,-557.81,0.0001193,2]
[361138143,1747301362218,-400.0,0.0001193,2]
[361138144,1747301362246,-400.0,0.0001193,2]
[361138145,1747301362274,-524.45874048,0.0001193,2]
[361138146,1747301362303,-400.0,0.0001193,2]
[361138147,1747301362331,-407.15803945,0.0001193,2]
[361138148,1747301362360,-400.0,0.0001193,2]
[361138149,1747301362390,-400.0,0.0001193,2]
[361138150,1747301362419,-400.0,0.0001193,2]
[361138151,1747301362450,-400.0,0.0001193,2]
[361138152,1747301362488,-400.0,0.0001193,2]
[361138153,1747301362528,-400.0,0.0001193,2]
[361138154,1747301362560,-500.0,0.0001193,2]
[361138155,1747301362592,-400.0,0.0001193,2]
[361138156,1747301362622,-400.0,0.0001193,2]
[361138157,1747301362652,-400.0,0.0001193,2]
[361138158,1747301362683,-400.0,0.0001193,2]
[361138159,1747301362713,-400.0,0.0001193,2]
[361138160,1747301362745,-400.0,0.0001193,2]
[361138161,1747301362777,-400.0,0.0001193,2]
[361138162,1747301362807,-1086.64,0.0001193,2]
[361138163,1747301362837,-400.0,0.0001193,2]
[361138164,1747301362865,-400.0,0.0001193,2]
[361138165,1747301362894,-400.0,0.0001193,2]
[361138166,1747301362924,-400.0,0.0001193,2]
[361138167,1747301362953,-400.0,0.0001193,2]
[361138168,1747301362982,-400.0,0.0001193,2]
[361138169,1747301363013,-250.0,0.0001193,2]
[361138170,1747301363043,-400.0,0.0001193,2]
[361138171,1747301363283,-400.0,0.0001193,2]
[361138172,1747301363314,-400.0,0.0001193,2]
[361138173,1747301363343,-400.0,0.0001193,2]
[361138174,1747301363372,-400.0,0.0001193,2]
[361138175,1747301363400,-400.0,0.0001193,2]
[361138176,1747301363429,-400.0,0.0001193,2]
[361138177,1747301363460,-400.0,0.0001193,2]
[361138178,1747301363489,-400.0,0.0001193,2]
[361138179,1747301363519,-402.11053679,0.0001193,2]
[361138180,1747301363549,-542.04,0.0001193,2]
[361138181,1747301363580,-400.0,0.0001193,2]
[361138182,1747301363610,-400.0,0.0001193,2]
[361138183,1747301363643,-400.0,0.0001193,2]
[361138184,1747301363677,-400.0,0.0001193,2]
[361138185,1747301363710,-400.0,0.0001193,2]
[361138186,1747301363738,-400.0,0.0001193,2]
[361138187,1747301363770,-400.0,0.0001193,2]
[361138188,1747301363797,-400.0,0.0001193,2]
[361138189,1747301363826,-400.0,0.0001193,2]
[361138190,1747301363857,-400.0,0.0001193,2]
[361138191,1747301363886,-753.91,0.0001193,2]
[361138192,1747301363914,-400.0,0.0001193,2]
[361138193,1747301363943,-304.58778035,0.0001193,2]
[361138194,1747301363971,-552.67,0.0001193,2]
[361138195,1747301363999,-446.86,0.0001193,2]
[361138196,1747301364033,-936.08,0.0001193,2]
[361138197,1747301364063,-416.36,0.0001193,2]
[361138198,1747301364092,-400.0,0.0001193,2]
[361138199,1747301364122,-400.0,0.0001193,2]
[361138200,1747301364156,-724.95,0.0001193,2]
[361138201,1747301364185,-400.0,0.0001193,2]
[361138202,1747301364215,-400.0,0.0001193,2]
[361138203,1747301364245,-400.0,0.0001193,2]
[361138204,1747301364275,-400.0,0.0001193,2]
[361138205,1747301364303,-151.0,0.00011931,2]
[361138206,1747301364331,-151.0,0.00011931,2]
[361138207,1747301364359,-243.960484,0.00011931,2]
[361138208,1747301364387,-151.0,0.00011931,2]
[361138209,1747301364416,-243.960484,0.00011931,2]